[Event "Late-Titled-Tuesday-Blitz-October-03-2023"]
[Site "Chess.com"]
[Date "2023.10.03"]
[Round "8"]
[White "maracayo"]
[Black "ETTrainer"]
[Result "0-1"]
[WhiteElo "2389"]
[BlackElo "2286"]
[TimeControl "180+1"]
[EndTime "15:24:41 PDT"]
[Termination "ETTrainer won on time"]

1. e4 {[%clk 0:03:00.9]} 1... c5 {[%clk 0:02:58.9]} 2. Nf3 {[%clk 0:03:00]} 2...
a6 {[%clk 0:02:59.4]} 3. b3 {[%clk 0:02:55.4]} 3... Nc6 {[%clk 0:02:55.7]} 4.
Bb2 {[%clk 0:02:55]} 4... e6 {[%clk 0:02:56]} 5. Be2 {[%clk 0:02:54.7]} 5... d6
{[%clk 0:02:56]} 6. O-O {[%clk 0:02:54.5]} 6... Nf6 {[%clk 0:02:52.8]} 7. d3
{[%clk 0:02:41]} 7... Be7 {[%clk 0:02:48.1]} 8. Nbd2 {[%clk 0:02:41]} 8... O-O
{[%clk 0:02:47.1]} 9. Re1 {[%clk 0:02:41.6]} 9... b5 {[%clk 0:02:33.9]} 10. a4
{[%clk 0:02:31.7]} 10... Bb7 {[%clk 0:02:20.4]} 11. axb5 {[%clk 0:02:28.7]}
11... axb5 {[%clk 0:02:21.2]} 12. Rxa8 {[%clk 0:02:28.2]} 12... Qxa8 {[%clk
0:02:19.3]} 13. Qa1 {[%clk 0:02:27.8]} 13... Nb4 {[%clk 0:02:17.2]} 14. Qb1
{[%clk 0:02:06.6]} 14... Qa5 {[%clk 0:01:53.8]} 15. c3 {[%clk 0:02:03.4]} 15...
Nc6 {[%clk 0:01:49.1]} 16. h3 {[%clk 0:01:23.5]} 16... Ra8 {[%clk 0:01:40.9]}
17. Qc2 {[%clk 0:01:19.4]} 17... Qb6 {[%clk 0:01:28]} 18. Bf1 {[%clk 0:01:11.5]}
18... b4 {[%clk 0:01:26.6]} 19. Nc4 {[%clk 0:01:08.7]} 19... Qc7 {[%clk
0:01:23.6]} 20. e5 {[%clk 0:00:52.8]} 20... Nd5 {[%clk 0:01:13.9]} 21. exd6
{[%clk 0:00:36.9]} 21... Bxd6 {[%clk 0:01:14.8]} 22. Nxd6 {[%clk 0:00:36.4]}
22... Qxd6 {[%clk 0:01:15.7]} 23. c4 {[%clk 0:00:36.6]} 23... Nde7 {[%clk
0:00:56.1]} 24. Ra1 {[%clk 0:00:36.2]} 24... Rxa1 {[%clk 0:00:52.7]} 25. Bxa1
{[%clk 0:00:37.1]} 25... Nf5 {[%clk 0:00:50.7]} 26. Qa2 {[%clk 0:00:29.7]} 26...
h6 {[%clk 0:00:48.9]} 27. g4 {[%clk 0:00:21.2]} 27... Nfd4 {[%clk 0:00:45.7]}
28. Bg2 {[%clk 0:00:20.9]} 28... Nxf3+ {[%clk 0:00:17.7]} 29. Bxf3 {[%clk
0:00:21.8]} 29... Qf4 {[%clk 0:00:18]} 30. Qe2 {[%clk 0:00:12.8]} 30... Nd4
{[%clk 0:00:17.5]} 31. Bxd4 {[%clk 0:00:12.1]} 31... Bxf3 {[%clk 0:00:16.9]} 32.
Qe3 {[%clk 0:00:09.8]} 32... Qxd4 {[%clk 0:00:13.5]} 33. Qxf3 {[%clk 0:00:08.9]}
33... Qc3 {[%clk 0:00:13]} 34. Qb7 {[%clk 0:00:05.3]} 34... Qxd3 {[%clk
0:00:10.7]} 35. Qe4 {[%clk 0:00:06.2]} 35... Qxe4 {[%clk 0:00:10.3]} 0-1

[Event "Late-Titled-Tuesday-Blitz-October-03-2023"]
[Site "Chess.com"]
[Date "2023.10.03"]
[Round "8"]
[White "Gyulamiryan-koryun"]
[Black "nicholas_ilic"]
[Result "0-1"]
[WhiteElo "1986"]
[BlackElo "2184"]
[TimeControl "180+1"]
[EndTime "15:24:50 PDT"]
[Termination "nicholas_ilic won on time"]

1. e4 {[%clk 0:02:59.7]} 1... c5 {[%clk 0:02:58.4]} 2. Nf3 {[%clk 0:02:59.2]}
2... Nc6 {[%clk 0:02:58.7]} 3. d4 {[%clk 0:02:59.2]} 3... cxd4 {[%clk
0:02:59.6]} 4. Nxd4 {[%clk 0:02:59.4]} 4... e5 {[%clk 0:02:56.3]} 5. Nb5 {[%clk
0:02:58.6]} 5... d6 {[%clk 0:02:54.7]} 6. N1c3 {[%clk 0:02:58.6]} 6... a6 {[%clk
0:02:55.4]} 7. Na3 {[%clk 0:02:58]} 7... Nf6 {[%clk 0:02:56.3]} 8. Bg5 {[%clk
0:02:56.5]} 8... Be7 {[%clk 0:02:57]} 9. Bxf6 {[%clk 0:02:55.8]} 9... gxf6
{[%clk 0:02:56.6]} 10. Nd5 {[%clk 0:02:56.1]} 10... f5 {[%clk 0:02:55.7]} 11.
Bd3 {[%clk 0:02:48.4]} 11... f4 {[%clk 0:02:54.6]} 12. c3 {[%clk 0:02:41.5]}
12... Be6 {[%clk 0:02:54.5]} 13. Bc4 {[%clk 0:02:39]} 13... b5 {[%clk
0:02:46.2]} 14. Bb3 {[%clk 0:02:32.2]} 14... Qa5 {[%clk 0:02:41.9]} 15. Nc2
{[%clk 0:02:13.5]} 15... O-O {[%clk 0:02:24.3]} 16. Qh5 {[%clk 0:01:59.7]} 16...
Kh8 {[%clk 0:02:16]} 17. O-O {[%clk 0:01:47.5]} 17... Rg8 {[%clk 0:02:03.7]} 18.
f3 {[%clk 0:01:45.2]} 18... Rg5 {[%clk 0:01:58.7]} 19. Qh6 {[%clk 0:01:40.4]}
19... Rg6 {[%clk 0:01:50.3]} 20. Qh5 {[%clk 0:01:40.1]} 20... Rag8 {[%clk
0:01:49.7]} 21. Nxe7 {[%clk 0:01:11.8]} 21... Rxg2+ {[%clk 0:01:47.5]} 22. Kh1
{[%clk 0:01:11.2]} 22... Nxe7 {[%clk 0:01:47.2]} 23. Bxe6 {[%clk 0:01:08.7]}
23... fxe6 {[%clk 0:01:46.7]} 24. Qh4 {[%clk 0:00:55]} 24... Qc7 {[%clk
0:01:14.6]} 25. Qf6+ {[%clk 0:00:52.5]} 25... R2g7 {[%clk 0:01:09.2]} 26. Rg1
{[%clk 0:00:50.6]} 26... Ng6 {[%clk 0:01:09.8]} 27. Qxe6 {[%clk 0:00:49.2]}
27... Qd7 {[%clk 0:01:08.7]} 28. Qxd7 {[%clk 0:00:38]} 28... Rxd7 {[%clk
0:01:09.6]} 29. Nb4 {[%clk 0:00:37.6]} 29... a5 {[%clk 0:01:05]} 30. Nd5 {[%clk
0:00:33.1]} 30... Rf8 {[%clk 0:00:55.1]} 31. a4 {[%clk 0:00:28.3]} 31... bxa4
{[%clk 0:00:52]} 32. Rxa4 {[%clk 0:00:27.6]} 32... Rb7 {[%clk 0:00:51.2]} 33. b4
{[%clk 0:00:24]} 33... axb4 {[%clk 0:00:51.5]} 34. cxb4 {[%clk 0:00:24.2]} 34...
Ne7 {[%clk 0:00:48.6]} 35. Rd1 {[%clk 0:00:18.4]} 35... Nxd5 {[%clk 0:00:45.9]}
36. Rxd5 {[%clk 0:00:17.6]} 36... Rc7 {[%clk 0:00:46.5]} 37. Ra1 {[%clk
0:00:13.4]} 37... Rc2 {[%clk 0:00:45.9]} 38. Rxd6 {[%clk 0:00:11.5]} 38... Rf2
{[%clk 0:00:36.8]} 39. Rd7 {[%clk 0:00:10.8]} 39... Rxf3 {[%clk 0:00:35.7]} 40.
Raa7 {[%clk 0:00:10.7]} 40... Rh3 {[%clk 0:00:35.8]} 41. Kg2 {[%clk 0:00:08.5]}
41... Rh6 {[%clk 0:00:35.6]} 42. h3 {[%clk 0:00:06.6]} 42... f3+ {[%clk
0:00:35]} 43. Kf2 {[%clk 0:00:05.9]} 43... Rxh3 {[%clk 0:00:34.8]} 44. b5 {[%clk
0:00:01.3]} 44... Rh2+ {[%clk 0:00:30.5]} 0-1

[Event "Late-Titled-Tuesday-Blitz-October-03-2023"]
[Site "Chess.com"]
[Date "2023.10.03"]
[Round "8"]
[White "GMG"]
[Black "GM_dmitrij"]
[Result "0-1"]
[WhiteElo "2763"]
[BlackElo "3047"]
[TimeControl "180+1"]
[EndTime "15:24:52 PDT"]
[Termination "GM_dmitrij won on time"]

1. d4 {[%clk 0:02:57.4]} 1... d5 {[%clk 0:03:00.2]} 2. Nf3 {[%clk 0:02:57.4]}
2... Nf6 {[%clk 0:02:56.6]} 3. c4 {[%clk 0:02:57.5]} 3... e6 {[%clk 0:02:55.3]}
4. Nc3 {[%clk 0:02:57.4]} 4... a6 {[%clk 0:02:47.7]} 5. cxd5 {[%clk 0:02:41.5]}
5... exd5 {[%clk 0:02:48.6]} 6. g3 {[%clk 0:02:40.5]} 6... Bd6 {[%clk
0:02:44.3]} 7. Qb3 {[%clk 0:02:39.3]} 7... c6 {[%clk 0:02:44]} 8. Bf4 {[%clk
0:02:38.4]} 8... O-O {[%clk 0:02:43]} 9. e3 {[%clk 0:02:34.9]} 9... b5 {[%clk
0:02:14.6]} 10. Qc2 {[%clk 0:02:21.1]} 10... Bg4 {[%clk 0:02:10.2]} 11. Ne5
{[%clk 0:02:20.4]} 11... Be6 {[%clk 0:02:09.7]} 12. Bd3 {[%clk 0:02:18.4]} 12...
c5 {[%clk 0:01:57.3]} 13. dxc5 {[%clk 0:02:13]} 13... Bxc5 {[%clk 0:01:58.2]}
14. Nxb5 {[%clk 0:02:08.2]} 14... Bb4+ {[%clk 0:01:51.2]} 15. Nc3 {[%clk
0:02:08.7]} 15... h6 {[%clk 0:01:51.5]} 16. h4 {[%clk 0:02:05.5]} 16... Qa5
{[%clk 0:01:41.6]} 17. O-O {[%clk 0:01:59.6]} 17... Rc8 {[%clk 0:01:40.4]} 18.
Rac1 {[%clk 0:01:48.7]} 18... Nc6 {[%clk 0:01:39.1]} 19. a3 {[%clk 0:01:43.9]}
19... Bf8 {[%clk 0:01:30]} 20. Qa4 {[%clk 0:01:34.5]} 20... Qb6 {[%clk
0:01:21.8]} 21. Nxc6 {[%clk 0:01:27.7]} 21... Rxc6 {[%clk 0:01:22.7]} 22. Be5
{[%clk 0:01:24]} 22... Nd7 {[%clk 0:01:21.9]} 23. Bd4 {[%clk 0:01:21.5]} 23...
Qb7 {[%clk 0:01:20.4]} 24. b4 {[%clk 0:01:19.5]} 24... Nb6 {[%clk 0:01:12.2]}
25. Bxb6 {[%clk 0:01:02.6]} 25... Qxb6 {[%clk 0:01:09.5]} 26. Ne2 {[%clk
0:01:03.2]} 26... Rxc1 {[%clk 0:00:43.8]} 27. Rxc1 {[%clk 0:01:04.1]} 27... a5
{[%clk 0:00:44.7]} 28. b5 {[%clk 0:00:57.5]} 28... Qd6 {[%clk 0:00:43.1]} 29.
Rc3 {[%clk 0:00:54.1]} 29... Bd7 {[%clk 0:00:34.6]} 30. Qf4 {[%clk 0:00:46.3]}
30... a4 {[%clk 0:00:21.9]} 31. Qxd6 {[%clk 0:00:35.6]} 31... Bxd6 {[%clk
0:00:22.8]} 32. Nf4 {[%clk 0:00:36]} 32... Rb8 {[%clk 0:00:16.8]} 33. Nxd5
{[%clk 0:00:21.9]} 33... Bxb5 {[%clk 0:00:16.8]} 34. Kf1 {[%clk 0:00:13.7]}
34... Be5 {[%clk 0:00:13.7]} 35. Bxb5 {[%clk 0:00:11.2]} 35... Rxb5 {[%clk
0:00:14.6]} 36. Rd3 {[%clk 0:00:11.5]} 36... Rb2 {[%clk 0:00:08.1]} 37. Ne7+
{[%clk 0:00:09.4]} 37... Kh7 {[%clk 0:00:07.1]} 38. Nc6 {[%clk 0:00:08.9]} 38...
Bf6 {[%clk 0:00:05.2]} 39. Na5 {[%clk 0:00:08.4]} 39... Rc2 {[%clk 0:00:04.2]}
40. Rd4 {[%clk 0:00:08.2]} 40... Bxd4 {[%clk 0:00:03.2]} 41. exd4 {[%clk
0:00:08.3]} 41... Rc3 {[%clk 0:00:04.1]} 0-1

[Event "Late-Titled-Tuesday-Blitz-October-03-2023"]
[Site "Chess.com"]
[Date "2023.10.03"]
[Round "8"]
[White "HamedWafa4"]
[Black "victormago"]
[Result "0-1"]
[WhiteElo "2619"]
[BlackElo "2528"]
[TimeControl "180+1"]
[EndTime "15:24:52 PDT"]
[Termination "victormago won by resignation"]

1. Nf3 {[%clk 0:03:00.9]} 1... Nf6 {[%clk 0:02:58.8]} 2. c4 {[%clk 0:02:59.3]}
2... g6 {[%clk 0:02:50.8]} 3. b3 {[%clk 0:02:55.6]} 3... Bg7 {[%clk 0:02:50.4]}
4. Bb2 {[%clk 0:02:56]} 4... O-O {[%clk 0:02:51.1]} 5. g3 {[%clk 0:02:55.9]}
5... c6 {[%clk 0:02:43.3]} 6. Bg2 {[%clk 0:02:54.7]} 6... d6 {[%clk 0:02:43.8]}
7. O-O {[%clk 0:02:54.8]} 7... a5 {[%clk 0:02:44.1]} 8. d3 {[%clk 0:02:33.4]}
8... e5 {[%clk 0:02:39.9]} 9. a3 {[%clk 0:02:26.9]} 9... Re8 {[%clk 0:02:39.4]}
10. b4 {[%clk 0:02:26]} 10... axb4 {[%clk 0:02:37.8]} 11. axb4 {[%clk
0:02:26.9]} 11... Rxa1 {[%clk 0:02:37.9]} 12. Bxa1 {[%clk 0:02:27.8]} 12... Na6
{[%clk 0:02:34.9]} 13. Qb3 {[%clk 0:02:24]} 13... Nd7 {[%clk 0:02:24.1]} 14.
Nbd2 {[%clk 0:02:18.4]} 14... h6 {[%clk 0:02:23.2]} 15. Ne4 {[%clk 0:02:12]}
15... Nf6 {[%clk 0:02:20.7]} 16. Nfd2 {[%clk 0:02:06.1]} 16... Nxe4 {[%clk
0:02:20.6]} 17. Nxe4 {[%clk 0:02:07]} 17... Be6 {[%clk 0:02:15.6]} 18. b5 {[%clk
0:02:04.3]} 18... Nc7 {[%clk 0:02:03.5]} 19. bxc6 {[%clk 0:01:21.2]} 19... bxc6
{[%clk 0:02:03.4]} 20. Bc3 {[%clk 0:01:21.9]} 20... d5 {[%clk 0:01:41.5]} 21.
Nc5 {[%clk 0:01:21.7]} 21... Bg4 {[%clk 0:01:31]} 22. Ba5 {[%clk 0:01:14]} 22...
Qc8 {[%clk 0:01:23.5]} 23. Qb6 {[%clk 0:00:58.7]} 23... Ne6 {[%clk 0:01:10.1]}
24. Nb7 {[%clk 0:00:49.3]} 24... Qb8 {[%clk 0:00:57.8]} 25. cxd5 {[%clk
0:00:46.5]} 25... cxd5 {[%clk 0:00:56.5]} 26. Bxd5 {[%clk 0:00:42.6]} 26... Bxe2
{[%clk 0:00:53]} 27. Re1 {[%clk 0:00:37.7]} 27... Bxd3 {[%clk 0:00:53]} 28. Qc6
{[%clk 0:00:27.4]} 28... Nd4 {[%clk 0:00:48.2]} 29. Qc3 {[%clk 0:00:26.9]} 29...
Ba6 {[%clk 0:00:41.5]} 30. Bc7 {[%clk 0:00:22.8]} 30... Qa7 {[%clk 0:00:33.9]}
31. Nd6 {[%clk 0:00:22.7]} 31... Rf8 {[%clk 0:00:31.8]} 32. Nxf7 {[%clk
0:00:14]} 32... Rxf7 {[%clk 0:00:27.8]} 33. Bxe5 {[%clk 0:00:14.5]} 33... Bxe5
{[%clk 0:00:23.7]} 34. Rxe5 {[%clk 0:00:14.3]} 34... Ne2+ {[%clk 0:00:23.8]} 35.
Rxe2 {[%clk 0:00:11.4]} 35... Bxe2 {[%clk 0:00:23.3]} 36. Qf6 {[%clk 0:00:10.4]}
36... Bd3 {[%clk 0:00:18]} 37. h4 {[%clk 0:00:06.1]} 37... Qd7 {[%clk
0:00:17.1]} 38. Be6 {[%clk 0:00:05.9]} 38... Qc7 {[%clk 0:00:15.3]} 39. h5
{[%clk 0:00:05.7]} 39... gxh5 {[%clk 0:00:14.1]} 40. Qxh6 {[%clk 0:00:06.3]}
40... Qe7 {[%clk 0:00:11.5]} 41. Qg6+ {[%clk 0:00:02.4]} 41... Bxg6 {[%clk
0:00:11]} 0-1

[Event "Late-Titled-Tuesday-Blitz-October-03-2023"]
[Site "Chess.com"]
[Date "2023.10.03"]
[Round "8"]
[White "carokannlover213"]
[Black "Zq1"]
[Result "1-0"]
[WhiteElo "2717"]
[BlackElo "2525"]
[TimeControl "180+1"]
[EndTime "15:24:54 PDT"]
[Termination "carokannlover213 won on time"]

1. e4 {[%clk 0:03:00.9]} 1... c5 {[%clk 0:02:59.4]} 2. Nf3 {[%clk 0:03:00.4]}
2... d6 {[%clk 0:02:59.3]} 3. d4 {[%clk 0:03:00]} 3... cxd4 {[%clk 0:02:59.4]}
4. Nxd4 {[%clk 0:03:00.9]} 4... Nf6 {[%clk 0:02:59.2]} 5. Nc3 {[%clk 0:03:01.5]}
5... Nc6 {[%clk 0:02:59.1]} 6. Bg5 {[%clk 0:03:01.5]} 6... e6 {[%clk 0:02:59.4]}
7. Qd3 {[%clk 0:03:01.7]} 7... Be7 {[%clk 0:02:57.6]} 8. O-O-O {[%clk
0:03:00.4]} 8... Nxd4 {[%clk 0:02:56.3]} 9. Qxd4 {[%clk 0:02:59.6]} 9... O-O
{[%clk 0:02:56.9]} 10. f4 {[%clk 0:02:58.1]} 10... h6 {[%clk 0:02:49.2]} 11. Bh4
{[%clk 0:02:47.4]} 11... Qc7 {[%clk 0:02:11.8]} 12. Qc4 {[%clk 0:02:13.4]} 12...
Qa5 {[%clk 0:01:57.3]} 13. Qb5 {[%clk 0:02:09]} 13... Qxb5 {[%clk 0:01:50.5]}
14. Bxb5 {[%clk 0:01:49.2]} 14... a6 {[%clk 0:01:47.9]} 15. Bd3 {[%clk
0:01:49.3]} 15... b5 {[%clk 0:01:43.5]} 16. e5 {[%clk 0:01:47.4]} 16... dxe5
{[%clk 0:01:42.2]} 17. fxe5 {[%clk 0:01:48.3]} 17... Nd5 {[%clk 0:01:41.7]} 18.
Bxe7 {[%clk 0:01:42.7]} 18... Nxe7 {[%clk 0:01:41.6]} 19. Be4 {[%clk 0:01:39.8]}
19... Ra7 {[%clk 0:01:40]} 20. Rd6 {[%clk 0:01:36.3]} 20... Rc7 {[%clk
0:01:39.4]} 21. Rhd1 {[%clk 0:01:33.9]} 21... g5 {[%clk 0:01:29.3]} 22. Ne2
{[%clk 0:01:24]} 22... Rc5 {[%clk 0:01:24.1]} 23. Ng3 {[%clk 0:00:48.9]} 23...
Rxe5 {[%clk 0:00:54.9]} 24. Nh5 {[%clk 0:00:48.4]} 24... Nd5 {[%clk 0:00:45.1]}
25. Bxd5 {[%clk 0:00:42.2]} 25... exd5 {[%clk 0:00:44.7]} 26. R1xd5 {[%clk
0:00:30.3]} 26... Rxd5 {[%clk 0:00:43.5]} 27. Rxd5 {[%clk 0:00:20.5]} 27... Bb7
{[%clk 0:00:42.7]} 28. Rd6 {[%clk 0:00:17.6]} 28... Bxg2 {[%clk 0:00:29.8]} 29.
Rxh6 {[%clk 0:00:17.6]} 29... Bf3 {[%clk 0:00:28.8]} 30. Ng3 {[%clk 0:00:11.2]}
30... f6 {[%clk 0:00:22.6]} 31. Nf5 {[%clk 0:00:10.8]} 31... Be4 {[%clk
0:00:18.6]} 32. Nd6 {[%clk 0:00:08.7]} 32... Kg7 {[%clk 0:00:17]} 33. Rh3 {[%clk
0:00:07]} 33... Bg6 {[%clk 0:00:13.8]} 34. Re3 {[%clk 0:00:04.7]} 34... f5
{[%clk 0:00:13.1]} 35. Re2 {[%clk 0:00:02.2]} 35... f4 {[%clk 0:00:12.7]} 36.
Rf2 {[%clk 0:00:02.7]} 36... Rh8 {[%clk 0:00:11.5]} 37. Nb7 {[%clk 0:00:02.2]}
37... Rh3 {[%clk 0:00:10.4]} 38. Nc5 {[%clk 0:00:02.5]} 38... a5 {[%clk
0:00:10.1]} 39. Ne6+ {[%clk 0:00:02.4]} 39... Kf6 {[%clk 0:00:09.4]} 40. Nd4
{[%clk 0:00:03.1]} 40... Be4 {[%clk 0:00:05.4]} 41. Ne2 {[%clk 0:00:03.3]} 41...
Ke5 {[%clk 0:00:03.7]} 42. Kd2 {[%clk 0:00:02.9]} 42... Rf3 {[%clk 0:00:01.8]}
43. Rxf3 {[%clk 0:00:02.3]} 43... Bxf3 {[%clk 0:00:01.5]} 44. Ng1 {[%clk
0:00:02.5]} 44... Bg4 {[%clk 0:00:01.1]} 45. Ke1 {[%clk 0:00:02.7]} 1-0

[Event "Late-Titled-Tuesday-Blitz-October-03-2023"]
[Site "Chess.com"]
[Date "2023.10.03"]
[Round "8"]
[White "GAusal"]
[Black "leoduarte"]
[Result "1/2-1/2"]
[WhiteElo "2279"]
[BlackElo "2423"]
[TimeControl "180+1"]
[EndTime "15:24:56 PDT"]
[Termination "Game drawn by repetition"]

1. d4 {[%clk 0:03:00.9]} 1... Nf6 {[%clk 0:02:59.4]} 2. Nf3 {[%clk 0:03:00]}
2... d5 {[%clk 0:02:56.6]} 3. Bf4 {[%clk 0:02:57.8]} 3... e6 {[%clk 0:02:56.9]}
4. e3 {[%clk 0:02:56.5]} 4... Bd6 {[%clk 0:02:56.8]} 5. Ne5 {[%clk 0:02:55.7]}
5... O-O {[%clk 0:02:55]} 6. c3 {[%clk 0:02:52.6]} 6... c5 {[%clk 0:02:55]} 7.
Nd2 {[%clk 0:02:52]} 7... Qc7 {[%clk 0:02:55.5]} 8. Bd3 {[%clk 0:02:41.5]} 8...
Nc6 {[%clk 0:02:53.5]} 9. Ndf3 {[%clk 0:02:37.8]} 9... cxd4 {[%clk 0:02:53.4]}
10. exd4 {[%clk 0:02:34.8]} 10... Ne4 {[%clk 0:02:47.6]} 11. Bg3 {[%clk
0:02:30.1]} 11... Ne7 {[%clk 0:02:43.9]} 12. Qe2 {[%clk 0:02:19.6]} 12... f6
{[%clk 0:02:36.8]} 13. Ng4 {[%clk 0:02:15.9]} 13... Bd7 {[%clk 0:02:35.3]} 14.
Bxd6 {[%clk 0:02:12.5]} 14... Nxd6 {[%clk 0:02:23]} 15. O-O {[%clk 0:02:06.7]}
15... Rae8 {[%clk 0:02:08.3]} 16. Rfe1 {[%clk 0:02:02.8]} 16... Ng6 {[%clk
0:01:56.7]} 17. Qc2 {[%clk 0:01:58.1]} 17... Ne4 {[%clk 0:01:39.8]} 18. Ne3
{[%clk 0:01:51.2]} 18... Bc6 {[%clk 0:01:38]} 19. b4 {[%clk 0:01:48.2]} 19...
Nf4 {[%clk 0:01:24.7]} 20. h3 {[%clk 0:01:39.4]} 20... Ba4 {[%clk 0:01:14.9]}
21. Qxa4 {[%clk 0:01:35.4]} 21... Nxd3 {[%clk 0:01:14.7]} 22. Rf1 {[%clk
0:01:32.7]} 22... Qxc3 {[%clk 0:01:09.8]} 23. Rab1 {[%clk 0:01:28.1]} 23... Nf4
{[%clk 0:00:25.6]} 24. Qxa7 {[%clk 0:01:20]} 24... Ra8 {[%clk 0:00:18.7]} 25.
Qxb7 {[%clk 0:01:19.3]} 25... Rxa2 {[%clk 0:00:18.9]} 26. Rbe1 {[%clk
0:01:13.4]} 26... Nd3 {[%clk 0:00:14.8]} 27. Nxd5 {[%clk 0:01:08.6]} 27... exd5
{[%clk 0:00:11.8]} 28. Qxd5+ {[%clk 0:01:07.6]} 28... Kh8 {[%clk 0:00:12.5]} 29.
Rxe4 {[%clk 0:01:03]} 29... Nxb4 {[%clk 0:00:08.9]} 30. Qd6 {[%clk 0:00:51.2]}
30... Rfa8 {[%clk 0:00:09]} 31. Re7 {[%clk 0:00:46.5]} 31... Nd3 {[%clk
0:00:03.4]} 32. Qe6 {[%clk 0:00:44.7]} 32... Qc8 {[%clk 0:00:03]} 33. Qf7 {[%clk
0:00:43.6]} 33... Qg8 {[%clk 0:00:02.3]} 34. Qxg8+ {[%clk 0:00:43.4]} 34... Kxg8
{[%clk 0:00:03]} 35. Rb1 {[%clk 0:00:33.3]} 35... Ra1 {[%clk 0:00:02]} 36. Rxa1
{[%clk 0:00:32.7]} 36... Rxa1+ {[%clk 0:00:02.9]} 37. Kh2 {[%clk 0:00:32.9]}
37... Nxf2 {[%clk 0:00:03.7]} 38. d5 {[%clk 0:00:29]} 38... Rd1 {[%clk
0:00:04.3]} 39. Rd7 {[%clk 0:00:29]} 39... Nd3 {[%clk 0:00:04.3]} 40. Nd4 {[%clk
0:00:28.2]} 40... Ne5 {[%clk 0:00:03]} 41. Rd8+ {[%clk 0:00:27.4]} 41... Kf7
{[%clk 0:00:03.6]} 42. Ne6 {[%clk 0:00:25.3]} 42... Rxd5 {[%clk 0:00:01.8]} 43.
Rxd5 {[%clk 0:00:24.2]} 43... Kxe6 {[%clk 0:00:02.6]} 44. Ra5 {[%clk 0:00:24.7]}
44... h6 {[%clk 0:00:02.9]} 45. Ra6+ {[%clk 0:00:24.5]} 45... Kf5 {[%clk
0:00:02.5]} 46. Ra7 {[%clk 0:00:24.3]} 46... g6 {[%clk 0:00:02.9]} 47. Ra5
{[%clk 0:00:24.5]} 47... h5 {[%clk 0:00:03.3]} 48. Ra6 {[%clk 0:00:22.5]} 48...
Kg5 {[%clk 0:00:03.1]} 49. Ra5 {[%clk 0:00:22]} 49... Kf5 {[%clk 0:00:03.5]} 50.
Ra6 {[%clk 0:00:22.2]} 50... Kg5 {[%clk 0:00:04.1]} 51. Ra5 {[%clk 0:00:22.2]}
51... Kf5 {[%clk 0:00:04.8]} 1/2-1/2

[Event "Late-Titled-Tuesday-Blitz-October-03-2023"]
[Site "Chess.com"]
[Date "2023.10.03"]
[Round "8"]
[White "Hirna2005"]
[Black "Deeper44"]
[Result "0-1"]
[WhiteElo "2293"]
[BlackElo "2540"]
[TimeControl "180+1"]
[EndTime "15:24:57 PDT"]
[Termination "Deeper44 won on time"]

1. e4 {[%clk 0:03:00.9]} 1... e6 {[%clk 0:03:00]} 2. d4 {[%clk 0:03:00.6]} 2...
d5 {[%clk 0:03:00.5]} 3. e5 {[%clk 0:03:00.9]} 3... c5 {[%clk 0:03:00.9]} 4. c3
{[%clk 0:03:01.1]} 4... Nc6 {[%clk 0:03:01.6]} 5. Be3 {[%clk 0:03:01.4]} 5...
Qb6 {[%clk 0:02:59.6]} 6. Qd2 {[%clk 0:03:01.3]} 6... Bd7 {[%clk 0:02:51.5]} 7.
Nf3 {[%clk 0:02:54.7]} 7... Rc8 {[%clk 0:02:51.4]} 8. dxc5 {[%clk 0:02:45.9]}
8... Bxc5 {[%clk 0:02:50.5]} 9. Bxc5 {[%clk 0:02:46.1]} 9... Qxc5 {[%clk
0:02:51.4]} 10. Bd3 {[%clk 0:02:46.6]} 10... a5 {[%clk 0:02:47]} 11. Qg5 {[%clk
0:02:39.9]} 11... g6 {[%clk 0:02:40.2]} 12. O-O {[%clk 0:02:38.1]} 12... h6
{[%clk 0:02:39.1]} 13. Qf4 {[%clk 0:02:30.5]} 13... g5 {[%clk 0:02:35.7]} 14.
Qg3 {[%clk 0:02:22.7]} 14... Nge7 {[%clk 0:02:31.1]} 15. h4 {[%clk 0:02:14.1]}
15... Rg8 {[%clk 0:02:13.2]} 16. hxg5 {[%clk 0:02:12.4]} 16... hxg5 {[%clk
0:02:13.2]} 17. Nxg5 {[%clk 0:01:50.5]} 17... d4 {[%clk 0:02:00.9]} 18. Re1
{[%clk 0:01:40.3]} 18... Nd5 {[%clk 0:00:28.3]} 19. Ne4 {[%clk 0:00:59.6]} 19...
Rxg3 {[%clk 0:00:27.4]} 20. Nxc5 {[%clk 0:00:59.7]} 20... Rg5 {[%clk 0:00:24.8]}
21. cxd4 {[%clk 0:00:47.4]} 21... Nxd4 {[%clk 0:00:25.7]} 22. Nxb7 {[%clk
0:00:44.6]} 22... Rb8 {[%clk 0:00:23]} 23. Nd6+ {[%clk 0:00:43.5]} 23... Ke7
{[%clk 0:00:23.7]} 24. Be4 {[%clk 0:00:25.8]} 24... Nf4 {[%clk 0:00:21.8]} 25.
Kf1 {[%clk 0:00:17.2]} 25... Rxe5 {[%clk 0:00:21.6]} 26. Nc4 {[%clk 0:00:15.4]}
26... Rc5 {[%clk 0:00:21.1]} 27. Nbd2 {[%clk 0:00:13.8]} 27... Bb5 {[%clk
0:00:20]} 28. b3 {[%clk 0:00:14.2]} 28... f5 {[%clk 0:00:19.4]} 29. g3 {[%clk
0:00:11.1]} 29... Nh3 {[%clk 0:00:18.2]} 30. Bg2 {[%clk 0:00:10.2]} 30... Ng5
{[%clk 0:00:18.7]} 31. Rac1 {[%clk 0:00:08.7]} 31... Rbc8 {[%clk 0:00:17.8]} 32.
a4 {[%clk 0:00:07.5]} 32... Ba6 {[%clk 0:00:17.6]} 33. Rc3 {[%clk 0:00:07.3]}
33... Nxb3 {[%clk 0:00:17.8]} 34. Rxb3 {[%clk 0:00:06.4]} 34... Rxc4 {[%clk
0:00:17.5]} 35. Nxc4 {[%clk 0:00:03.3]} 35... Bxc4+ {[%clk 0:00:17.7]} 36. Kg1
{[%clk 0:00:03.9]} 36... Bxb3 {[%clk 0:00:18.3]} 37. Rb1 {[%clk 0:00:04.2]}
37... Rc3 {[%clk 0:00:17.7]} 38. Bf1 {[%clk 0:00:03.7]} 38... Nf3+ {[%clk
0:00:17.8]} 39. Kg2 {[%clk 0:00:03.9]} 39... Nd2 {[%clk 0:00:18.4]} 40. Rb2
{[%clk 0:00:04.1]} 40... Bd5+ {[%clk 0:00:17.4]} 41. Kg1 {[%clk 0:00:03.6]}
41... Nf3+ {[%clk 0:00:17.8]} 42. Kg2 {[%clk 0:00:03.4]} 42... Ng5+ {[%clk
0:00:18.5]} 43. Kh2 {[%clk 0:00:03.2]} 43... Ne4 {[%clk 0:00:18]} 0-1